bitfinex/quotes_SOLUSD_20251127
["timestamp","ask_amount","ask_price","bid_price","bid_amount"]
[1764261153335,0.68,142.09,142.07,3.86980493]
[1764261153532,0.68,142.09,142.06,3.86980493]
[1764261153908,3.1,142.1,142.06,3.86980493]
[1764261154121,3.78,142.1,142.06,4.53980493]
[1764261154327,0.68,142.11,142.08,3.86980493]
[1764261155527,0.68,142.11,142.09,7.03779294]
[1764261157246,0.68,142.11,142.08,7.03821749]
[1764261158137,0.68,142.11,142.07,7.03869361]
[1764261158842,16.29536923,142.11,142.07,7.03869361]
[1764261159026,11.58664209,142.11,142.07,7.03869361]
[1764261159222,3.78,142.12,142.08,3.86980493]
[1764261159428,0.68,142.11,142.08,3.86980493]
[1764261159750,0.68,142.11,142.09,7.03779294]
[1764261160038,3.78,142.13,142.09,11.57759787]
[1764261160240,0.67,142.12,142.09,10.90759787]
[1764261160827,0.67,142.12,142.09,7.03779294]
[1764261165128,0.67,142.14,142.11,3.86980493]
[1764261165336,3.1,142.14,142.11,3.86980493]
[1764261165642,3.1,142.14,142.09,24.63227531]
[1764261165643,0.2,142.16,142.13,3.86980493]
[1764261165843,0.2,142.16,142.12,16.998864]
[1764261165844,0.2,142.16,142.14,3.86980493]
[1764261166621,0.87,142.16,142.13,3.86980493]
[1764261167248,0.87,142.16,142.14,7.03531729]
[1764261168424,4.53980493,142.15,142.09,16.308864]
[1764261168628,0.67,142.15,142.11,3.86980493]
[1764261168934,4.06980493,142.16,142.13,3.86980493]
[1764261168935,0.2,142.16,142.13,3.86980493]
[1764261169451,0.87,142.16,142.12,21.46051857]
[1764261169745,0.2,142.16,142.13,7.03572489]
[1764261169948,0.2,142.16,142.13,11.59552982]
[1764261170446,0.2,142.16,142.13,29.18506053]
[1764261171244,0.2,142.16,142.13,24.6252556]
[1764261171453,0.87,142.16,142.13,24.6252556]
[1764261172553,0.87,142.16,142.13,28.49506053]
[1764261172733,0.2,142.16,142.14,3.86980493]
[1764261173350,0.2,142.16,142.13,24.6252556]
[1764261173551,0.87,142.16,142.13,28.49506053]
[1764261173940,0.87,142.16,142.14,3.86980493]
[1764261174140,0.2,142.16,142.14,3.86980493]
[1764261174349,0.2,142.16,142.14,4.55980493]
[1764261174556,0.2,142.16,142.15,2.13197315]
[1764261174940,0.2,142.16,142.15,7.72482237]
[1764261175253,0.2,142.16,142.15,9.16679552]
[1764261176154,0.2,142.16,142.15,8.47679552]
[1764261176354,0.2,142.16,142.15,7.03482237]
[1764261176658,0.2,142.16,142.15,11.5882145]
[1764261178660,0.2,142.16,142.15,13.70097003]
[1764261181738,0.2,142.16,142.14,7.03509072]
[1764261181739,0.87,142.16,142.14,7.03509072]
[1764261181939,0.87,142.16,142.11,0.69]
[1764261181940,6.84614766,142.16,142.12,7.03630734]
[1764261182159,6.64614766,142.15,142.1,7.03700074]
[1764261182459,5.97614766,142.13,142.1,7.03700074]
[1764261182839,0.67,142.12,142.1,7.03700074]
[1764261183654,0.67,142.12,142.09,17.59393684]
[1764261183655,5.97614766,142.15,142.09,30.60787744]
[1764261183835,0.67,142.14,142.09,30.60787744]
[1764261184253,0.67,142.14,142.1,5.97614766]
[1764261185045,5.97614766,142.11,142.01,35.20802401]
[1764261185257,5.97614766,142.1,142.04,5.97614766]
[1764261185466,3.1,142.12,142.05,5.97614766]
[1764261185666,3.1,142.12,142.06,13.01517132]
[1764261185667,6.64614766,142.11,142.06,13.01517132]
[1764261185967,5.97614766,142.1,142.06,7.03902366]
[1764261186146,5.97614766,142.09,142.04,30.6162612]
[1764261186358,6.64614766,142.09,142.04,13.01593664]
[1764261186550,0.67,142.08,142.04,29.32480064]
[1764261186754,0.67,142.08,142.04,46.9254765]
[1764261187260,5.97614766,142.11,142.06,5.97614766]
[1764261187441,0.67,142.1,142.06,5.97614766]
[1764261187636,0.67,142.11,142.08,13.01443594]
[1764261187836,0.67,142.11,142.09,5.97614766]
[1764261188655,3.1,142.12,142.1,5.97614766]
[1764261188856,3.77,142.12,142.11,5.97614766]
[1764261189160,3.1,142.12,142.11,5.97614766]
[1764261189365,0.67,142.14,142.11,5.97614766]
[1764261189563,0.67,142.14,142.12,5.97614766]
[1764261189754,0.67,142.14,142.12,13.0120518]
[1764261189954,0.67,142.14,142.1,17.59248795]
[1764261189955,0.67,142.14,142.11,5.97614766]
[1764261190151,0.67,142.14,142.11,7.0366203]
[1764261191070,0.67,142.14,142.11,13.01276796]
[1764261191443,0.67,142.14,142.11,7.0366203]
[1764261192260,0.67,142.14,142.11,13.01276796]
[1764261194669,0.67,142.14,142.11,7.0366203]
[1764261195148,0.67,142.14,142.1,7.03683914]
[1764261195348,0.67,142.14,142.11,5.97614766]
[1764261196771,0.67,142.14,142.12,7.03630734]
[1764261196966,4.0,142.16,142.12,13.012455]
[1764261197173,0.7,142.15,142.12,13.012455]
[1764261197375,0.7,142.15,142.12,7.03630734]
[1764261197553,0.7,142.15,142.12,13.012455]
[1764261198767,0.7,142.15,142.13,5.97614766]
[1764261199550,0.2,142.16,142.14,5.97614766]
[1764261199848,0.7,142.15,142.14,5.97614766]
[1764261201274,0.7,142.15,142.14,13.01146495]
[1764261201981,0.2,142.16,142.14,13.01146495]
[1764261202270,0.2,142.16,142.14,5.97614766]
[1764261202476,0.9,142.16,142.15,5.97614766]
[1764261202654,0.9,142.16,142.14,5.97614766]
[1764261202853,0.7,142.15,142.14,5.97614766]
[1764261203067,0.2,142.16,142.14,5.97614766]
[1764261203269,0.9,142.16,142.15,5.97614766]
[1764261203596,0.2,142.16,142.15,5.97614766]
[1764261203884,0.2,142.16,142.15,6.69614766]
[1764261204055,0.2,142.16,142.15,17.028864]
[1764261204252,0.2,142.16,142.15,30.03983403]
[1764261205162,0.2,142.16,142.15,29.31983403]
[1764261213763,0.2,142.16,142.15,30.03983403]
[1764261213963,0.2,142.16,142.15,31.0276394]
[1764261215191,0.2,142.16,142.15,33.13983403]
[1764261217077,1e-08,142.16,142.15,42.93758432]
[1764261217278,0.2,142.19,142.16,0.28432314]
[1764261217475,0.2,142.19,142.18,5.97614766]
[1764261217972,0.2,142.19,142.18,6.69614766]
[1764261218689,0.2,142.19,142.18,26.31385077]
[1764261220699,0.2,142.19,142.18,25.59385077]
[1764261222192,0.88,142.19,142.18,25.59385077]
[1764261222573,0.2,142.19,142.18,25.59385077]
[1764261223165,0.2,142.19,142.18,26.26385077]
[1764261223665,0.2,142.19,142.18,25.59385077]
[1764261223975,0.2,142.19,142.18,23.34220202]
[1764261224178,0.88,142.19,142.18,25.59385077]
[1764261226995,0.2,142.19,142.18,25.59385077]
[1764261227387,0.88,142.19,142.18,25.59385077]
[1764261228492,0.88,142.19,142.18,18.56051275]
[1764261229497,0.88,142.19,142.18,25.59385077]
[1764261230385,0.88,142.19,142.18,7.03333802]
[1764261230580,0.88,142.19,142.14,17.58791847]
[1764261230782,0.68,142.18,142.14,17.58791847]
[1764261230990,0.68,142.18,142.15,2.25164875]
[1764261231791,0.68,142.18,142.16,9.28561379]
[1764261232806,2.25164875,142.17,142.13,7.03568774]
[1764261233104,9.96513438,142.18,142.13,9.28733649]
[1764261233298,0.68,142.17,142.13,9.28733649]
[1764261233679,0.68,142.17,142.14,2.25164875]
[1764261233880,0.68,142.17,142.15,9.28647112]
[1764261234805,0.68,142.17,142.15,2.25164875]
[1764261235902,0.68,142.17,142.16,9.28578087]
[1764261236681,0.68,142.17,142.16,2.25164875]
[1764261236886,0.68,142.17,142.15,9.28624662]
[1764261239603,0.68,142.17,142.15,2.25164875]
[1764261239806,0.68,142.17,142.14,7.03531729]
[1764261240008,5.35164875,142.16,142.11,16.308864]
[1764261240189,7.81417105,142.16,142.06,35.19532578]
[1764261240528,2.25164875,142.13,142.08,2.25164875]
[1764261240688,2.25164875,142.13,142.07,24.63545451]
[1764261240689,1.44376256,142.11,142.07,7.03878369]
[1764261241220,0.68,142.1,142.03,7.71076603]
[1764261241401,2.12376256,142.1,142.04,0.67]
[1764261241714,0.68,142.1,142.06,16.308864]
[1764261241891,0.68,142.09,142.06,17.75262656]
[1764261242092,0.68,142.09,142.06,1.44376256]
[1764261243194,0.68,142.11,142.08,1.44376256]
[1764261243594,0.68,142.11,142.08,8.48165754]
[1764261245098,0.68,142.11,142.09,1.44376256]
[1764261246302,3.1,142.12,142.09,1.44376256]
[1764261246502,0.68,142.11,142.1,1.44376256]
[1764261246706,0.68,142.11,142.08,24.6336157]
[1764261246906,0.68,142.11,142.1,1.44376256]
[1764261247700,0.68,142.11,142.08,24.6336157]
[1764261247900,3.1,142.12,142.08,2.11376256]
[1764261248119,3.78,142.12,142.11,1.44376256]
[1764261248414,3.1,142.12,142.1,1.44376256]
[1764261248616,3.78,142.12,142.1,1.44376256]
[1764261248821,3.78,142.12,142.1,8.48059454]
[1764261250320,3.1,142.12,142.11,1.44376256]
[1764261250521,0.66,142.15,142.11,2.12376256]
[1764261250710,3.76,142.15,142.12,1.44376256]
[1764261250906,3.76,142.15,142.12,8.47988975]
[1764261251112,0.68,142.14,142.12,8.47988975]
[1764261251820,3.78,142.15,142.12,8.47988975]
[1764261252027,0.68,142.14,142.13,1.44376256]
[1764261252327,0.68,142.14,142.12,8.47988975]
[1764261252710,3.78,142.15,142.13,1.44376256]
[1764261252916,0.68,142.14,142.13,1.44376256]
[1764261253230,0.68,142.14,142.12,8.47988975]
[1764261254221,3.1,142.15,142.13,1.44376256]
[1764261254435,3.78,142.15,142.13,1.44376256]
[1764261255039,3.78,142.15,142.13,8.47920308]
[1764261255235,3.1,142.15,142.13,8.47920308]
[1764261255437,0.68,142.14,142.13,7.03544052]
[1764261255612,3.78,142.15,142.13,8.47920308]
[1764261256233,3.78,142.15,142.14,1.44376256]
[1764261256234,3.1,142.15,142.14,1.44376256]
[1764261256449,3.78,142.18,142.14,2.16376256]
[1764261256613,3.78,142.18,142.16,1.44376256]
[1764261256940,0.68,142.17,142.15,1.44376256]
[1764261257235,0.68,142.17,142.15,8.47839762]
[1764261257635,0.68,142.17,142.16,1.44376256]
[1764261258735,3.1,142.18,142.16,1.44376256]
[1764261258936,3.1,142.18,142.17,1.44376256]
[1764261259237,3.1,142.18,142.17,8.47759529]
[1764261260943,3.78,142.18,142.17,8.47759529]
[1764261261455,3.78,142.18,142.15,18.30705592]
[1764261261456,3.78,142.18,142.16,7.03418741]
[1764261261630,0.68,142.17,142.14,1.44376256]
[1764261262715,0.68,142.17,142.15,1.44376256]
[1764261263216,0.68,142.17,142.15,8.47836515]
[1764261263944,9.1577659,142.17,142.13,8.47911526]
[1764261264154,9.1577659,142.17,142.12,24.78877371]
[1764261264437,0.68,142.16,142.12,24.78877371]
[1764261264939,0.68,142.16,142.13,1.44376256]
[1764261265317,0.68,142.16,142.13,8.47930501]
[1764261266735,0.68,142.16,142.15,1.44376256]
[1764261269241,0.68,142.16,142.15,8.47858493]
[1764261269844,3.1,142.18,142.15,8.47858493]
[1764261270048,0.68,142.17,142.15,8.47858493]
[1764261271156,0.68,142.17,142.15,7.03482237]
[1764261274345,0.68,142.17,142.12,16.308864]
[1764261274346,1.44376256,142.16,142.12,16.308864]
[1764261274546,8.4781918,142.16,142.12,7.03612922]
[1764261274852,2.12376256,142.15,142.1,7.03729767]
[1764261275058,4.54376256,142.14,142.1,7.03729767]
[1764261275224,3.78,142.14,142.1,8.48106023]
[1764261275427,0.68,142.13,142.11,1.44376256]
[1764261275624,0.68,142.13,142.1,8.48106023]
[1764261275827,1.44376256,142.12,142.07,19.04010862]
[1764261276260,1.44376256,142.1,142.05,19.76264311]
[1764261276553,3.1,142.09,142.06,7.03927917]
[1764261276749,3.78,142.09,142.06,8.48304173]
[1764261277045,3.1,142.09,142.07,1.44376256]
[1764261277222,0.68,142.11,142.08,1.44376256]
[1764261277418,3.1,142.12,142.08,1.44376256]
[1764261277624,0.68,142.11,142.08,1.44376256]
[1764261278628,0.68,142.11,142.08,8.4815561]
[1764261279047,0.68,142.11,142.08,7.03779354]
[1764261283955,0.68,142.11,142.08,8.4815561]
[1764261284654,7.71680662,142.11,142.07,8.48237564]
[1764261284833,9.16056918,142.11,142.07,8.48237564]
[1764261285035,0.67,142.1,142.07,8.48237564]
[1764261290633,0.67,142.1,142.07,7.03861308]
[1764261290838,0.67,142.1,142.07,8.48237564]
[1764261291053,0.67,142.1,142.07,7.03861308]
[1764261292356,0.67,142.1,142.07,8.48237564]
[1764261296767,0.67,142.1,142.08,1.44376256]
[1764261297453,0.67,142.1,142.07,8.48237564]
[1764261298750,0.67,142.1,142.07,7.03861308]
[1764261298941,1.44376256,142.08,142.02,0.7]
[1764261299146,7.7073034,142.1,142.02,1.44376256]
[1764261299147,4.54376256,142.07,142.02,1.44376256]
[1764261299361,1.44376256,142.06,142.01,1.44376256]
[1764261299568,9.15315494,142.06,142.01,8.48514276]
[1764261299742,11.58268361,142.07,142.02,1.44376256]
[1764261299946,0.67,142.06,142.02,2.14376256]
[1764261300363,0.67,142.06,142.03,1.44376256]
[1764261300857,3.1,142.07,142.05,1.44376256]
[1764261301058,3.1,142.07,142.06,1.44376256]
[1764261301477,3.1,142.07,142.06,9.18304173]
[1764261301962,3.1,142.07,142.06,1.44376256]
[1764261302360,3.1,142.07,142.06,9.18304173]
[1764261302557,3.1,142.07,142.06,9.29569557]
[1764261303265,3.1,142.07,142.06,9.99569557]
[1764261304347,26.39996224,142.13,142.06,27.59389351]
[1764261304348,3.1,142.1,142.06,27.59389351]
[1764261304671,3.1,142.1,142.09,2.2564164]
[1764261304866,3.77,142.1,142.08,2.2564164]
[1764261305271,0.67,142.09,142.05,7.03963194]
[1764261305461,2.9264164,142.09,142.05,9.29604834]
[1764261305670,0.67,142.09,142.06,2.2564164]
[1764261305870,0.67,142.08,142.06,9.29562074]
[1764261309762,0.67,142.08,142.06,2.2564164]
[1764261310983,0.71,142.1,142.07,2.2564164]
[1764261311176,3.1,142.09,142.08,2.2564164]
[1764261311574,3.81,142.13,142.08,2.9364164]
[1764261311775,3.1,142.13,142.11,7.03645547]
[1764261311978,3.1,142.13,142.12,2.2564164]
[1764261313867,3.1,142.13,142.12,9.29272374]
[1764261317064,0.71,142.15,142.12,9.29272374]
[1764261317267,0.91,142.19,142.14,2.2564164]
[1764261317480,0.91,142.19,142.18,2.2564164]
[1764261317685,0.2,142.19,142.18,2.2564164]
[1764261317964,0.91,142.19,142.18,2.2564164]
[1764261318984,0.91,142.19,142.15,16.988864]
[1764261319296,0.71,142.18,142.14,9.2916916]
[1764261319465,0.71,142.18,142.15,2.2564164]
[1764261320089,0.71,142.18,142.15,9.29099212]
[1764261320304,7.74336869,142.18,142.14,7.03513565]
[1764261320506,9.99978509,142.18,142.12,16.308864]
[1764261320681,0.71,142.17,142.12,18.5652804]
[1764261320868,3.1,142.16,142.12,18.5652804]
[1764261321381,0.71,142.15,142.12,25.60141115]
[1764261322984,0.71,142.15,142.12,7.03613075]
[1764261323385,0.71,142.15,142.12,9.29254715]
[1764261323888,3.1,142.16,142.13,2.2564164]
[1764261324067,3.1,142.16,142.12,7.03613075]
[1764261324068,3.81,142.16,142.14,2.2564164]
[1764261324784,3.1,142.16,142.15,2.2564164]
[1764261326106,3.81,142.16,142.14,9.29133335]
[1764261326403,0.71,142.15,142.14,9.29133335]
[1764261326580,3.1,142.16,142.14,9.29133335]
[1764261327398,0.91,142.19,142.15,2.9364164]
[1764261327568,4.01,142.19,142.17,2.2564164]
[1764261328479,4.01,142.19,142.16,9.290666]
[1764261328684,4.01,142.19,142.17,2.2564164]
[1764261329199,3.3,142.19,142.17,2.2564164]
[1764261329589,4.01,142.19,142.17,2.2564164]
[1764261329774,4.01,142.19,142.17,9.29003737]
[1764261331093,4.01,142.19,142.17,7.03362097]
[1764261331291,4.01,142.19,142.16,9.29052175]
[1764261331590,0.71,142.18,142.16,9.29052175]
[1764261331786,0.71,142.18,142.15,2.2564164]
[1764261331986,0.71,142.18,142.14,7.71531729]
[1764261332189,0.71,142.18,142.15,2.2564164]
[1764261333896,0.71,142.18,142.16,7.03432751]
[1764261334096,0.71,142.18,142.15,9.29104042]
[1764261339488,0.71,142.18,142.12,16.308864]
[1764261339489,2.2564164,142.17,142.12,19.84680303]
[1764261339681,9.99976936,142.18,142.12,19.84680303]
[1764261339892,0.71,142.17,142.12,20.52680303]
[1764261340091,0.71,142.17,142.13,7.03581228]
[1764261340594,0.71,142.17,142.13,9.29222868]
[1764261341181,7.74386125,142.17,142.13,9.29222868]
[1764261341394,0.67,142.16,142.13,9.29222868]
[1764261342803,7.7034959,142.18,142.14,2.2564164]
[1764261343005,0.2,142.19,142.15,2.2564164]
[1764261343205,3.77,142.18,142.16,2.2564164]
[1764261343411,3.77,142.18,142.15,2.2564164]
[1764261344012,3.1,142.18,142.16,2.2564164]
[1764261344395,0.87,142.19,142.16,2.2564164]
[1764261344396,0.2,142.19,142.17,2.9464164]
[1764261344603,0.2,142.19,142.18,9.28975442]
[1764261344796,0.2,142.19,142.18,9.97975442]
[1764261344990,0.2,142.19,142.18,9.28975442]
[1764261345383,0.2,142.19,142.17,16.308864]
[1764261345588,0.87,142.19,142.17,18.5652804]
[1764261345994,0.2,142.19,142.17,18.5652804]
[1764261346196,0.2,142.19,142.18,2.9464164]
[1764261347005,0.2,142.19,142.18,9.97975442]
[1764261348312,0.87,142.19,142.18,7.03333802]
[1764261348616,0.87,142.19,142.15,2.2564164]
[1764261348803,0.67,142.18,142.15,2.2564164]
[1764261349111,0.67,142.18,142.16,7.03432751]
[1764261349410,0.67,142.18,142.15,7.03461344]
[1764261350214,3.1,142.17,142.15,7.03461344]
[1764261350594,3.77,142.17,142.15,7.03461344]
[1764261351113,3.1,142.17,142.15,9.29102984]
[1764261354599,3.1,142.17,142.15,7.03461344]
[1764261354910,3.1,142.17,142.15,9.29102984]
[1764261355936,3.1,142.17,142.16,2.9464164]
[1764261356103,0.2,142.19,142.16,2.9464164]
[1764261356301,0.87,142.19,142.16,2.9464164]
[1764261356501,3.1264164,142.19,142.13,33.89769537]
[1764261356718,0.67,142.18,142.15,2.2564164]
[1764261357503,0.67,142.18,142.16,2.2564164]
[1764261359220,0.67,142.18,142.16,9.29056171]
[1764261359417,0.67,142.18,142.15,9.29117166]
[1764261359725,0.67,142.18,142.14,7.03508026]
[1764261359726,9.95990402,142.18,142.14,7.03508026]
[1764261359920,2.2564164,142.17,142.13,7.03559392]
[1764261360101,3.1,142.16,142.13,7.03559392]
[1764261360301,3.77,142.16,142.13,7.03559392]
[1764261360516,0.67,142.15,142.13,7.03559392]
[1764261361197,0.67,142.15,142.07,0.69]
[1764261361198,2.2564164,142.14,142.07,0.69]
[1764261361421,2.2564164,142.12,142.07,0.69]
[1764261361621,0.67,142.11,142.07,19.2552804]
[1764261362311,0.67,142.11,142.08,24.63341475]
[1764261362520,0.67,142.11,142.08,9.29470468]
[1764261362821,0.67,142.11,142.08,25.324009]
[1764261362997,0.67,142.11,142.08,27.5804254]
[1764261363400,3.1,142.12,142.09,2.2564164]
[1764261363600,3.77,142.12,142.09,2.2564164]
[1764261364299,0.67,142.11,142.08,9.29470468]
[1764261364523,0.67,142.11,142.08,8.48217733]
[1764261365022,2.11388905,142.11,142.08,7.03828828]
[1764261365227,10.13648588,142.12,142.09,2.13388905]
[1764261365228,3.1,142.12,142.09,2.13388905]
[1764261365525,3.1,142.12,142.09,1.44388905]
[1764261365822,3.77,142.12,142.09,1.44388905]
[1764261366414,3.77,142.12,142.1,7.03729767]
[1764261367620,3.1,142.12,142.1,7.03729767]
[1764261371139,3.1,142.12,142.1,7.72729767]
[1764261371335,3.1,142.12,142.1,7.03729767]
[1764261371716,3.79,142.12,142.1,7.03729767]
[1764261372319,2.13388905,142.11,142.05,7.03956545]
[1764261372522,1.44388905,142.1,142.05,26.08289131]
[1764261372723,0.69,142.1,142.07,1.44388905]
[1764261373309,4.54388905,142.12,142.08,8.48217733]
[1764261373514,3.1,142.11,142.09,1.44388905]
[1764261373733,3.1,142.11,142.09,2.13388905]
[1764261374737,3.1,142.11,142.1,7.03729767]
[1764261376441,3.79,142.11,142.1,7.03729767]
[1764261376649,3.1,142.11,142.1,7.03729767]
[1764261377850,3.1,142.11,142.1,8.48118672]
[1764261378152,7.03492855,142.15,142.1,9.17118672]
[1764261378153,3.1,142.14,142.1,9.17118672]
[1764261378446,3.1,142.14,142.12,1.44388905]
[1764261379218,3.1,142.14,142.13,7.03581228]
[1764261381546,3.1,142.14,142.13,9.16970133]
[1764261382443,23.34243577,142.18,142.13,26.75923204]
[1764261382444,3.1,142.18,142.13,26.75923204]
[1764261382746,0.2,142.19,142.17,1.44388905]
[1764261382925,0.2,142.19,142.14,0.69]
[1764261382926,0.2,142.19,142.18,1.44388905]
[1764261383345,0.2,142.19,142.18,0.69]
[1764261383537,0.2,142.19,142.18,9.16722707]
[1764261388746,0.07588843,142.22,142.19,16.308864]
[1764261388953,0.07588843,142.22,142.21,1.44388905]
[1764261389433,0.07588843,142.22,142.21,2.13388905]
[1764261390369,0.07588843,142.22,142.21,9.16574334]
[1764261398440,0.07588843,142.22,142.21,7.72185429]
[1764261398640,0.07588843,142.22,142.21,9.16574334]
[1764261399664,0.07588843,142.22,142.21,9.45006648]
[1764261399962,0.1,142.24,142.23,23.52830925]
[1764261400466,0.1,142.24,142.23,31.93226128]
[1764261402047,0.1,142.24,142.23,32.21658442]
[1764261402241,1e-08,142.24,142.23,32.21658442]
[1764261402442,1e-08,142.25,142.24,0.28432314]
[1764261402654,1e-08,142.25,142.24,11.27376839]
[1764261403349,0.1,142.27,142.24,11.27376839]
[1764261403350,0.1,142.27,142.26,16.59318714]
[1764261403546,0.1,142.27,142.26,4.82821219]
[1764261403844,0.1,142.27,142.26,21.80707619]
[1764261404465,0.1,142.27,142.26,23.33824682]
[1764261404657,0.1,142.27,142.26,24.78213587]
[1764261405167,0.1,142.27,142.26,25.06645901]
[1764261405351,0.1,142.27,142.26,25.73645901]
[1764261406959,0.1,142.27,142.26,24.78213587]
[1764261412483,0.79,142.27,142.26,24.78213587]
[1764261413223,0.79,142.27,142.26,7.02938282]
[1764261413360,0.79,142.27,142.26,23.33824682]
[1764261413561,0.79,142.27,142.26,7.02938282]
[1764261413770,0.79,142.27,142.26,8.47327187]
[1764261413965,0.79,142.27,142.26,24.78213587]
[1764261417576,0.79,142.27,142.25,7.02968548]
[1764261417910,0.79,142.27,142.26,1.44388905]
[1764261418197,0.1,142.27,142.26,1.44388905]
[1764261418392,0.1,142.27,142.26,2.11388905]
[1764261418778,0.1,142.27,142.26,25.45213587]
[1764261420207,1e-08,142.27,142.26,28.83645901]
[1764261420731,1e-08,142.27,142.26,23.33824682]
[1764261420997,1e-08,142.27,142.26,24.78213587]
[1764261421205,1e-08,142.27,142.26,25.45213587]
[1764261422002,0.1,142.29,142.26,43.02559292]
[1764261422195,0.1,142.29,142.28,1.44388905]
[1764261422489,0.1,142.29,142.28,16.308864]
[1764261422692,0.1,142.29,142.28,17.75275305]
[1764261422894,0.1,142.29,142.28,24.78114776]
[1764261423081,0.79,142.29,142.28,24.78114776]
[1764261423401,0.1,142.29,142.28,24.78114776]
[1764261423587,0.79,142.29,142.28,24.78114776]
[1764261424392,0.79,142.29,142.28,17.75275305]
[1764261424588,0.79,142.29,142.27,2.24991534]
[1764261424899,0.79,142.29,142.27,18.55877934]
[1764261425084,0.79,142.29,142.28,2.24991534]
[1764261425279,0.1,142.29,142.28,2.24991534]
[1764261425898,0.1,142.29,142.28,2.91991534]
[1764261427003,0.1,142.29,142.28,26.25717405]
[1764261427190,0.1,142.29,142.28,25.58717405]
[1764261429806,0.1,142.29,142.28,23.33725871]
[1764261429998,0.1,142.29,142.28,25.58717405]
[1764261430311,0.82,142.29,142.28,16.308864]
[1764261430805,0.82,142.29,142.28,23.33725871]
[1764261431202,0.82,142.29,142.28,16.308864]
[1764261432009,0.82,142.29,142.28,23.33725871]
[1764261432217,0.1,142.29,142.28,25.58717405]
[1764261434304,0.1,142.29,142.28,24.01725871]
[1764261434620,0.1,142.29,142.28,26.26717405]
[1764261434825,0.1,142.29,142.28,25.58717405]
[1764261436618,0.77,142.29,142.28,25.58717405]
[1764261437815,0.77,142.29,142.25,7.02987697]
[1764261438009,0.77,142.29,142.26,2.24991534]
[1764261438706,0.77,142.29,142.27,7.02888873]
[1764261440921,0.77,142.29,142.26,2.24991534]
[1764261441133,0.77,142.29,142.26,9.27923223]
[1764261441500,0.77,142.29,142.26,7.02931689]
[1764261441700,7.79794433,142.29,142.25,25.58842894]
[1764261441901,0.77,142.29,142.25,25.58842894]
[1764261442100,0.67,142.28,142.25,25.58842894]
[1764261442408,0.67,142.28,142.26,2.24991534]
[1764261442613,0.67,142.28,142.27,2.24991534]
[1764261442921,0.67,142.28,142.27,9.27880407]
[1764261443513,0.67,142.28,142.25,40.91298636]
[1764261443736,0.67,142.28,142.26,2.24991534]
[1764261444806,0.67,142.28,142.26,9.27885302]
[1764261446420,0.67,142.28,142.26,7.02893768]
[1764261446602,0.67,142.28,142.26,9.27885302]
[1764261446916,0.67,142.28,142.25,25.58858758]
[1764261447312,0.67,142.28,142.25,23.33867224]
[1764261447515,0.1,142.29,142.27,2.24991534]
[1764261447717,0.1,142.29,142.25,40.91336468]
[1764261447718,0.77,142.29,142.28,2.24991534]
[1764261448021,0.77,142.29,142.22,35.43949651]
[1764261448022,8.80994492,142.28,142.19,2.24991534]
[1764261448204,2.24991534,142.24,142.18,9.28312736]
[1764261448404,0.67,142.27,142.23,2.24991534]
[1764261448722,38.42738188,142.29,142.23,2.24991534]
[1764261448723,0.67,142.26,142.23,2.24991534]
[1764261448925,5.37732576,142.28,142.25,9.27952657]
[1764261449228,0.67,142.27,142.25,9.27952657]
[1764261449524,0.67,142.27,142.24,9.28007538]
[1764261451124,0.67,142.27,142.24,7.03016004]
[1764261451512,14.65631215,142.27,142.21,36.13788131]
[1764261451712,9.94883996,142.27,142.21,36.13788131]
[1764261452030,0.67,142.26,142.22,2.24991534]
[1764261452225,0.67,142.26,142.22,9.281092]
[1764261452731,0.67,142.26,142.23,2.24991534]
[1764261453106,0.67,142.26,142.23,9.28069779]